[Event "Titled Tuesday Blitz March 28 Late 2023"]
[White "Makarian, Rudik"]
[Black "Graif, William"]
[WhiteFideId "44105681"]
[BlackFideId "2609835"]
[WhiteElo "2436"]
[BlackElo "2205"]
[Result "1-0"]
[Round "05"]
[TimeControl "180+2"]
[Date "2023.03.28"]
[WhiteClock "0:01:34"]
[BlackClock "0:00:05"]

1. e4 {[%clk 0:03:00]}  e5 {[%clk 0:02:57]} 2. Nc3 {[%clk 0:03:01]}  Bc5 {[%clk 0:02:52]} 3. Bc4 {[%clk 0:03:00]}  d6 {[%clk 0:02:51]} 4. d3 {[%clk 0:03:00]}  a6 {[%clk 0:02:45]} 5. a3 {[%clk 0:02:56]}  Nc6 {[%clk 0:02:40]} 6. Nge2 {[%clk 0:02:53]}  Nf6 {[%clk 0:02:37]} 7. O-O {[%clk 0:02:44]}  Be6 {[%clk 0:01:42]} 8. Bg5 {[%clk 0:02:42]}  Qd7 {[%clk 0:01:30]} 9. Bxf6 {[%clk 0:02:38]}  gxf6 {[%clk 0:01:30]} 10. Ng3 {[%clk 0:02:38]}  O-O-O {[%clk 0:01:26]} 11. Nd5 {[%clk 0:02:32]}  f5 {[%clk 0:00:56]} 12. exf5 {[%clk 0:02:28]}  Bxf5 {[%clk 0:00:51]} 13. b4 {[%clk 0:02:26]}  Ba7 {[%clk 0:00:49]} 14. b5 {[%clk 0:02:23]}  axb5 {[%clk 0:00:45]} 15. Bxb5 {[%clk 0:02:22]}  Bg4 {[%clk 0:00:43]} 16. Qb1 {[%clk 0:02:10]}  h5 {[%clk 0:00:31]} 17. Ne4 {[%clk 0:01:58]}  Qe6 {[%clk 0:00:17]} 18. Bc4 {[%clk 0:01:53]}  Qf5 {[%clk 0:00:13]} 19. Qb5 {[%clk 0:01:46]}  Qd7 {[%clk 0:00:07]} 20. Rab1 {[%clk 0:01:42]}  b6 {[%clk 0:00:07]} 21. Ndf6 {[%clk 0:01:37]}  Qf5 {[%clk 0:00:05]} 22. Qxc6 {[%clk 0:01:34]} 1-0


[Site "https://www.chess.com"]

[Event "Titled Tuesday Blitz March 28 Late 2023"]
[White "Yurasova, Daria"]
[Black "Zierk, Steven"]
[WhiteFideId "34146919"]
[BlackFideId "2034255"]
[WhiteElo "2134"]
[BlackElo "2494"]
[Result "0-1"]
[Round "05"]
[TimeControl "180+2"]
[Date "2023.03.28"]
[WhiteClock "0:00:02"]
[BlackClock "0:00:43"]

1. d4 {[%clk 0:03:00]}  e6 {[%clk 0:03:00]} 2. Nf3 {[%clk 0:02:59]}  f5 {[%clk 0:03:00]} 3. Bf4 {[%clk 0:02:56]}  Nf6 {[%clk 0:03:00]} 4. e3 {[%clk 0:02:56]}  b6 {[%clk 0:03:00]} 5. h3 {[%clk 0:02:56]}  Bb7 {[%clk 0:03:00]} 6. c4 {[%clk 0:02:56]}  Bb4+ {[%clk 0:02:55]} 7. Nc3 {[%clk 0:02:55]}  Ne4 {[%clk 0:02:55]} 8. Qc2 {[%clk 0:02:53]}  Bxc3+ {[%clk 0:02:53]} 9. bxc3 {[%clk 0:02:54]}  d6 {[%clk 0:02:54]} 10. Bd3 {[%clk 0:02:48]}  Nd7 {[%clk 0:02:53]} 11. Bh2 {[%clk 0:02:47]}  Qf6 {[%clk 0:02:50]} 12. O-O {[%clk 0:02:40]}  O-O {[%clk 0:02:42]} 13. Nd2 {[%clk 0:02:34]}  Ng5 {[%clk 0:02:38]} 14. e4 {[%clk 0:01:44]}  Qg6 {[%clk 0:02:33]} 15. f3 {[%clk 0:00:39]}  Nxh3+ {[%clk 0:02:26]} 16. Kh1 {[%clk 0:00:40]}  Ng5 {[%clk 0:02:23]} 17. Rae1 {[%clk 0:00:36]}  f4 {[%clk 0:02:16]} 18. e5 {[%clk 0:00:31]}  Qh5 {[%clk 0:02:15]} 19. Ne4 {[%clk 0:00:29]}  Nxe4 {[%clk 0:02:05]} 20. Bxe4 {[%clk 0:00:28]}  Bxe4 {[%clk 0:02:05]} 21. Qxe4 {[%clk 0:00:29]}  dxe5 {[%clk 0:02:02]} 22. Qc6 {[%clk 0:00:20]}  Qf7 {[%clk 0:01:59]} 23. dxe5 {[%clk 0:00:19]}  Nc5 {[%clk 0:01:57]} 24. Rd1 {[%clk 0:00:20]}  Rad8 {[%clk 0:01:55]} 25. Rd4 {[%clk 0:00:20]}  Nd3 {[%clk 0:01:49]} 26. Qe4 {[%clk 0:00:16]}  Qf5 {[%clk 0:01:34]} 27. Kg1 {[%clk 0:00:13]}  Nxe5 {[%clk 0:01:18]} 28. Qxf5 {[%clk 0:00:11]}  exf5 {[%clk 0:01:17]} 29. Rxd8 {[%clk 0:00:10]}  Rxd8 {[%clk 0:01:17]} 30. Bxf4 {[%clk 0:00:11]}  Nxc4 {[%clk 0:01:13]} 31. Bxc7 {[%clk 0:00:11]}  Rd3 {[%clk 0:01:10]} 32. Rc1 {[%clk 0:00:07]}  Kf7 {[%clk 0:01:08]} 33. Bf4 {[%clk 0:00:06]}  h6 {[%clk 0:01:07]} 34. a4 {[%clk 0:00:05]}  g5 {[%clk 0:01:06]} 35. Bb8 {[%clk 0:00:05]}  a5 {[%clk 0:01:03]} 36. Bc7 {[%clk 0:00:06]}  Rd7 {[%clk 0:01:02]} 37. Bg3 {[%clk 0:00:05]}  Rd2 {[%clk 0:00:59]} 38. Bf2 {[%clk 0:00:05]}  Rb2 {[%clk 0:00:52]} 39. Bd4 {[%clk 0:00:04]}  b5 {[%clk 0:00:48]} 40. axb5 {[%clk 0:00:04]}  Rxb5 {[%clk 0:00:49]} 41. Ra1 {[%clk 0:00:04]}  Ke6 {[%clk 0:00:48]} 42. Kf2 {[%clk 0:00:05]}  f4 {[%clk 0:00:46]} 43. Ke2 {[%clk 0:00:04]}  Rb2+ {[%clk 0:00:43]} 44. Kd3 {[%clk 0:00:05]}  Kd5 {[%clk 0:00:44]} 45. Rd1 {[%clk 0:00:02]}  Rxg2 {[%clk 0:00:43]} 46. Bg7 {[%clk 0:00:02]}  Nb2# {[%clk 0:00:43]} 0-1


[Site "https://www.chess.com"]

[Event "Titled Tuesday Blitz March 28 Late 2023"]
[White "Mortazavi, Ali"]
[Black "Darini, Pouria"]
[WhiteFideId "401323"]
[BlackFideId "12502200"]
[WhiteElo "2339"]
[BlackElo "2482"]
[Result "1-0"]
[Round "05"]
[TimeControl "180+2"]
[Date "2023.03.28"]
[WhiteClock "0:00:06"]
[BlackClock "0:00:02"]

1. Nf3 {[%clk 0:03:00]}  Nf6 {[%clk 0:02:59]} 2. g3 {[%clk 0:03:00]}  g6 {[%clk 0:03:00]} 3. Bg2 {[%clk 0:03:01]}  Bg7 {[%clk 0:03:00]} 4. O-O {[%clk 0:03:01]}  O-O {[%clk 0:03:01]} 5. d3 {[%clk 0:03:01]}  d5 {[%clk 0:03:02]} 6. Nbd2 {[%clk 0:03:01]}  Nc6 {[%clk 0:03:03]} 7. e4 {[%clk 0:03:00]}  dxe4 {[%clk 0:03:04]} 8. dxe4 {[%clk 0:02:59]}  Nd7 {[%clk 0:03:04]} 9. Qe2 {[%clk 0:02:51]}  Nc5 {[%clk 0:03:02]} 10. Nb3 {[%clk 0:02:36]}  Na4 {[%clk 0:02:53]} 11. c3 {[%clk 0:02:32]}  a5 {[%clk 0:02:44]} 12. Rd1 {[%clk 0:02:29]}  Qe8 {[%clk 0:02:44]} 13. Bf4 {[%clk 0:02:23]}  e5 {[%clk 0:02:40]} 14. Be3 {[%clk 0:02:24]}  b6 {[%clk 0:02:26]} 15. Qc2 {[%clk 0:02:07]}  Ba6 {[%clk 0:02:21]} 16. Nbd2 {[%clk 0:01:53]}  b5 {[%clk 0:01:33]} 17. Bf1 {[%clk 0:01:44]}  Qe7 {[%clk 0:01:23]} 18. Be2 {[%clk 0:01:21]}  Rfd8 {[%clk 0:01:12]} 19. Nb3 {[%clk 0:01:15]}  Bf8 {[%clk 0:01:07]} 20. Rd5 {[%clk 0:01:12]}  Rxd5 {[%clk 0:00:45]} 21. exd5 {[%clk 0:01:11]}  Nb8 {[%clk 0:00:41]} 22. Nxa5 {[%clk 0:01:06]}  Nb6 {[%clk 0:00:33]} 23. Rd1 {[%clk 0:01:00]}  N8d7 {[%clk 0:00:31]} 24. b4 {[%clk 0:00:44]}  Qe8 {[%clk 0:00:23]} 25. a3 {[%clk 0:00:32]}  f5 {[%clk 0:00:22]} 26. Ng5 {[%clk 0:00:30]}  Bd6 {[%clk 0:00:22]} 27. Ne6 {[%clk 0:00:30]}  Nxd5 {[%clk 0:00:20]} 28. Nxc7 {[%clk 0:00:27]}  Bxc7 {[%clk 0:00:03]} 29. Rxd5 {[%clk 0:00:26]}  Nf6 {[%clk 0:00:03]} 30. Rd1 {[%clk 0:00:22]}  Bxa5 {[%clk 0:00:04]} 31. bxa5 {[%clk 0:00:22]}  Qc6 {[%clk 0:00:03]} 32. Qb3+ {[%clk 0:00:20]}  Kh8 {[%clk 0:00:03]} 33. Qf7 {[%clk 0:00:17]}  Bb7 {[%clk 0:00:03]} 34. f3 {[%clk 0:00:17]}  Nd5 {[%clk 0:00:01]} 35. Rxd5 {[%clk 0:00:11]}  Qxd5 {[%clk 0:00:01]} 36. Qf6+ {[%clk 0:00:10]}  Kg8 {[%clk 0:00:02]} 37. Qb6 {[%clk 0:00:06]} 1-0


[Site "https://www.chess.com"]

[Event "Titled Tuesday Blitz March 28 Late 2023"]
[White "Popov, Mikhail"]
[Black "Papayan, Oleg"]
[WhiteFideId "4146182"]
[BlackFideId "4193911"]
[WhiteElo "2270"]
[BlackElo "2153"]
[Result "0-1"]
[Round "05"]
[TimeControl "180+2"]
[Date "2023.03.28"]
[WhiteClock "0:00:22"]
[BlackClock "0:00:37"]

1. d4 {[%clk 0:03:00]}  Nf6 {[%clk 0:02:58]} 2. Nf3 {[%clk 0:03:00]}  d5 {[%clk 0:02:58]} 3. Bg5 {[%clk 0:02:59]}  c5 {[%clk 0:02:57]} 4. Nc3 {[%clk 0:02:57]}  cxd4 {[%clk 0:02:52]} 5. Qxd4 {[%clk 0:02:58]}  Nc6 {[%clk 0:02:51]} 6. Qh4 {[%clk 0:02:59]}  e6 {[%clk 0:02:46]} 7. O-O-O {[%clk 0:02:58]}  Bd7 {[%clk 0:02:12]} 8. e4 {[%clk 0:02:57]}  dxe4 {[%clk 0:02:06]} 9. Nxe4 {[%clk 0:02:52]}  Be7 {[%clk 0:02:07]} 10. Bxf6 {[%clk 0:02:20]}  Bxf6 {[%clk 0:01:54]} 11. Nxf6+ {[%clk 0:02:16]}  Qxf6 {[%clk 0:01:52]} 12. Qxf6 {[%clk 0:02:10]}  gxf6 {[%clk 0:01:53]} 13. Bb5 {[%clk 0:02:00]}  a6 {[%clk 0:01:49]} 14. Ba4 {[%clk 0:02:00]}  b5 {[%clk 0:01:32]} 15. Bb3 {[%clk 0:02:00]}  Na5 {[%clk 0:01:33]} 16. Rd6 {[%clk 0:01:46]}  Bc6 {[%clk 0:01:08]} 17. Nd4 {[%clk 0:01:11]}  Bxg2 {[%clk 0:01:08]} 18. Rg1 {[%clk 0:01:08]}  Nxb3+ {[%clk 0:01:01]} 19. axb3 {[%clk 0:01:07]}  Bd5 {[%clk 0:01:02]} 20. Re1 {[%clk 0:00:58]}  O-O {[%clk 0:00:53]} 21. Nf5 {[%clk 0:00:36]}  Rfd8 {[%clk 0:00:41]} 22. Rg1+ {[%clk 0:00:28]}  Kf8 {[%clk 0:00:38]} 23. Rd7 {[%clk 0:00:22]}  Rxd7 {[%clk 0:00:37]} 0-1


[Site "https://www.chess.com"]

[Event "Titled Tuesday Blitz March 28 Late 2023"]
[White "Miszler, Levente"]
[Black "Domingo Nunez, Alejandro"]
[WhiteFideId "763276"]
[BlackFideId "22245561"]
[WhiteElo "2176"]
[BlackElo "2230"]
[Result "0-1"]
[Round "05"]
[TimeControl "180+2"]
[Date "2023.03.28"]
[WhiteClock "0:00:03"]
[BlackClock "0:00:13"]

1. e4 {[%clk 0:03:00]}  g6 {[%clk 0:03:00]} 2. d4 {[%clk 0:03:00]}  Bg7 {[%clk 0:03:00]} 3. Nc3 {[%clk 0:03:01]}  c6 {[%clk 0:03:00]} 4. a4 {[%clk 0:02:46]}  d5 {[%clk 0:03:00]} 5. e5 {[%clk 0:02:42]}  f6 {[%clk 0:03:00]} 6. Nf3 {[%clk 0:02:42]}  fxe5 {[%clk 0:02:57]} 7. Nxe5 {[%clk 0:02:40]}  Nd7 {[%clk 0:02:56]} 8. Bf4 {[%clk 0:02:38]}  Ngf6 {[%clk 0:02:55]} 9. Be2 {[%clk 0:02:32]}  O-O {[%clk 0:02:54]} 10. Bg3 {[%clk 0:02:28]}  Nxe5 {[%clk 0:02:34]} 11. dxe5 {[%clk 0:02:28]}  Nd7 {[%clk 0:02:33]} 12. f4 {[%clk 0:02:24]}  g5 {[%clk 0:02:26]} 13. O-O {[%clk 0:02:16]}  gxf4 {[%clk 0:02:25]} 14. Bxf4 {[%clk 0:02:16]}  Nxe5 {[%clk 0:02:25]} 15. Bh5 {[%clk 0:02:07]}  Nc4 {[%clk 0:02:06]} 16. Qe1 {[%clk 0:01:51]}  e5 {[%clk 0:02:02]} 17. Bc1 {[%clk 0:01:41]}  Be6 {[%clk 0:02:00]} 18. Rxf8+ {[%clk 0:01:35]}  Qxf8 {[%clk 0:02:01]} 19. Qg3 {[%clk 0:01:35]}  Kh8 {[%clk 0:01:58]} 20. b3 {[%clk 0:01:33]}  Nd6 {[%clk 0:01:46]} 21. Ba3 {[%clk 0:01:31]}  e4 {[%clk 0:01:41]} 22. Bxd6 {[%clk 0:01:26]}  Qf5 {[%clk 0:01:40]} 23. Be2 {[%clk 0:01:20]}  Bd4+ {[%clk 0:01:35]} 24. Kh1 {[%clk 0:01:19]}  Rg8 {[%clk 0:01:35]} 25. Qe1 {[%clk 0:00:58]}  Qf6 {[%clk 0:01:22]} 26. Nxe4 {[%clk 0:00:38]}  dxe4 {[%clk 0:01:21]} 27. Rd1 {[%clk 0:00:38]}  Bd5 {[%clk 0:01:02]} 28. Rxd4 {[%clk 0:00:27]}  Qxd4 {[%clk 0:01:00]} 29. Bb4 {[%clk 0:00:26]}  Rg7 {[%clk 0:00:22]} 30. Bc3 {[%clk 0:00:26]}  Qe3 {[%clk 0:00:22]} 31. Qa1 {[%clk 0:00:17]}  Kg8 {[%clk 0:00:20]} 32. Bxg7 {[%clk 0:00:15]}  Qxe2 {[%clk 0:00:20]} 33. Bh8 {[%clk 0:00:15]}  Qg4 {[%clk 0:00:20]} 34. h3 {[%clk 0:00:14]}  Qg5 {[%clk 0:00:20]} 35. Bf6 {[%clk 0:00:13]}  Qg6 {[%clk 0:00:17]} 36. Qe5 {[%clk 0:00:12]}  e3 {[%clk 0:00:16]} 37. Qb8+ {[%clk 0:00:08]}  Kf7 {[%clk 0:00:16]} 38. Qc7+ {[%clk 0:00:06]}  Kxf6 {[%clk 0:00:16]} 39. Qd6+ {[%clk 0:00:06]}  Kf5 {[%clk 0:00:16]} 40. Qd7+ {[%clk 0:00:05]}  Qe6 {[%clk 0:00:15]} 41. Qxh7+ {[%clk 0:00:05]}  Ke5 {[%clk 0:00:15]} 42. Qh5+ {[%clk 0:00:04]}  Kd6 {[%clk 0:00:15]} 43. Qe2 {[%clk 0:00:03]}  Qe5 {[%clk 0:00:14]} 44. h4 {[%clk 0:00:03]}  Qg3 {[%clk 0:00:15]} 45. h5 {[%clk 0:00:03]}  Qf2 {[%clk 0:00:13]} 46. Qg4 {[%clk 0:00:03]}  e2 {[%clk 0:00:13]} 47. Qg6+ {[%clk 0:00:03]}  Kc5 {[%clk 0:00:13]} 0-1


[Site "https://www.chess.com"]

[Event "Titled Tuesday Blitz March 28 Late 2023"]
[White "Djokic, Mihailo"]
[Black "WindWhistler11"]
[WhiteFideId "976440"]
[WhiteElo "2294"]
[BlackElo "2470"]
[Result "1-0"]
[Round "05"]
[TimeControl "180+2"]
[Date "2023.03.28"]
[WhiteClock "0:00:04"]
[BlackClock "0:00:03"]

1. e4 {[%clk 0:03:00]}  e6 {[%clk 0:02:58]} 2. d4 {[%clk 0:03:00]}  d5 {[%clk 0:02:59]} 3. Nc3 {[%clk 0:03:00]}  Bb4 {[%clk 0:02:56]} 4. e5 {[%clk 0:03:00]}  Ne7 {[%clk 0:02:50]} 5. a3 {[%clk 0:03:00]}  Bxc3+ {[%clk 0:02:50]} 6. bxc3 {[%clk 0:03:01]}  c5 {[%clk 0:02:51]} 7. h4 {[%clk 0:03:01]}  Qc7 {[%clk 0:02:37]} 8. h5 {[%clk 0:03:01]}  h6 {[%clk 0:02:37]} 9. Nf3 {[%clk 0:03:01]}  Bd7 {[%clk 0:02:34]} 10. Be2 {[%clk 0:02:46]}  Ba4 {[%clk 0:02:27]} 11. Rh4 {[%clk 0:02:11]}  cxd4 {[%clk 0:02:03]} 12. Rxd4 {[%clk 0:02:10]}  Bd7 {[%clk 0:02:00]} 13. c4 {[%clk 0:02:08]}  Nbc6 {[%clk 0:01:59]} 14. Rg4 {[%clk 0:02:08]}  Nxe5 {[%clk 0:01:56]} 15. Nxe5 {[%clk 0:01:55]}  Qxe5 {[%clk 0:01:55]} 16. Bf4 {[%clk 0:01:55]}  Qc3+ {[%clk 0:01:48]} 17. Bd2 {[%clk 0:01:54]}  Qf6 {[%clk 0:01:32]} 18. Rb1 {[%clk 0:01:49]}  Bc6 {[%clk 0:01:27]} 19. cxd5 {[%clk 0:01:43]}  Nxd5 {[%clk 0:01:23]} 20. Rb3 {[%clk 0:01:39]}  O-O-O {[%clk 0:01:13]} 21. Qc1 {[%clk 0:01:28]}  Qe5 {[%clk 0:01:05]} 22. c4 {[%clk 0:01:24]}  Nf6 {[%clk 0:01:00]} 23. Rh4 {[%clk 0:00:56]}  Ne4 {[%clk 0:00:45]} 24. Bf4 {[%clk 0:00:55]}  Qa5+ {[%clk 0:00:45]} 25. Kf1 {[%clk 0:00:51]}  Rd7 {[%clk 0:00:42]} 26. f3 {[%clk 0:00:48]}  Nd2+ {[%clk 0:00:36]} 27. Bxd2 {[%clk 0:00:47]}  Rxd2 {[%clk 0:00:33]} 28. Qa1 {[%clk 0:00:42]}  Rhd8 {[%clk 0:00:31]} 29. Rb4 {[%clk 0:00:38]}  Qg5 {[%clk 0:00:27]} 30. Rg4 {[%clk 0:00:32]}  Qe3 {[%clk 0:00:20]} 31. Qe1 {[%clk 0:00:24]}  Rc2 {[%clk 0:00:19]} 32. Rb1 {[%clk 0:00:23]}  Rdd2 {[%clk 0:00:19]} 33. Rxg7 {[%clk 0:00:03]}  Rxe2 {[%clk 0:00:16]} 34. Rg8+ {[%clk 0:00:03]}  Kd7 {[%clk 0:00:13]} 35. Rd1+ {[%clk 0:00:02]}  Rcd2 {[%clk 0:00:10]} 36. Rxd2+ {[%clk 0:00:02]}  Qxd2 {[%clk 0:00:10]} 37. Qxe2 {[%clk 0:00:02]}  Qc1+ {[%clk 0:00:11]} 38. Kf2 {[%clk 0:00:03]}  Qxa3 {[%clk 0:00:10]} 39. Qd2+ {[%clk 0:00:03]}  Bd5 {[%clk 0:00:05]} 40. cxd5 {[%clk 0:00:03]}  Qc5+ {[%clk 0:00:06]} 41. Kg3 {[%clk 0:00:03]}  exd5 {[%clk 0:00:06]} 42. Qf4 {[%clk 0:00:02]}  Qe7 {[%clk 0:00:04]} 43. Qf5+ {[%clk 0:00:02]}  Kc6 {[%clk 0:00:03]} 44. Qc2+ {[%clk 0:00:02]}  Kd6 {[%clk 0:00:03]} 45. Qf5 {[%clk 0:00:03]}  f6 {[%clk 0:00:02]} 46. Rg6 {[%clk 0:00:03]}  Kc5 {[%clk 0:00:01]} 47. Rxf6 {[%clk 0:00:03]}  Qc7+ {[%clk 0:00:02]} 48. Qf4 {[%clk 0:00:04]}  Qg7+ {[%clk 0:00:03]} 49. Rg6 {[%clk 0:00:04]}  Qg8 {[%clk 0:00:03]} 50. Qc7+ {[%clk 0:00:04]}  Kb5 {[%clk 0:00:03]} 51. Qxb7+ {[%clk 0:00:05]}  Kc4 {[%clk 0:00:03]} 52. Qc6+ {[%clk 0:00:05]}  Kd3 {[%clk 0:00:03]} 53. Rxg8 {[%clk 0:00:04]} 1-0


[Site "https://www.chess.com"]

[Event "Titled Tuesday Blitz March 28 Late 2023"]
[White "Khumalo, Keith"]
[Black "Khandelwal, Ankush"]
[WhiteFideId "14319470"]
[BlackFideId "413470"]
[WhiteElo "2056"]
[BlackElo "2263"]
[Result "1-0"]
[Round "05"]
[TimeControl "180+2"]
[Date "2023.03.28"]
[WhiteClock "0:01:41"]
[BlackClock "0:00:01"]

1. d4 {[%clk 0:02:57]}  Nf6 {[%clk 0:02:58]} 2. c4 {[%clk 0:02:57]}  g6 {[%clk 0:02:58]} 3. Nc3 {[%clk 0:02:57]}  Bg7 {[%clk 0:02:57]} 4. e4 {[%clk 0:02:57]}  d6 {[%clk 0:02:55]} 5. Bd3 {[%clk 0:02:57]}  O-O {[%clk 0:02:49]} 6. Nge2 {[%clk 0:02:58]}  Nbd7 {[%clk 0:02:44]} 7. O-O {[%clk 0:02:57]}  c5 {[%clk 0:02:42]} 8. d5 {[%clk 0:02:57]}  Ne5 {[%clk 0:02:41]} 9. a3 {[%clk 0:02:58]}  e6 {[%clk 0:02:14]} 10. h3 {[%clk 0:02:57]}  exd5 {[%clk 0:02:12]} 11. cxd5 {[%clk 0:02:58]}  Nxd3 {[%clk 0:02:10]} 12. Qxd3 {[%clk 0:02:58]}  Re8 {[%clk 0:02:11]} 13. a4 {[%clk 0:02:56]}  Nd7 {[%clk 0:02:10]} 14. f4 {[%clk 0:02:56]}  Qc7 {[%clk 0:01:49]} 15. b3 {[%clk 0:02:55]}  c4 {[%clk 0:01:42]} 16. bxc4 {[%clk 0:02:45]}  Nc5 {[%clk 0:01:41]} 17. Qc2 {[%clk 0:02:41]}  Nxe4 {[%clk 0:01:40]} 18. Nxe4 {[%clk 0:02:31]}  Bxa1 {[%clk 0:01:35]} 19. N2g3 {[%clk 0:02:31]}  f5 {[%clk 0:01:01]} 20. Ng5 {[%clk 0:02:22]}  Bd7 {[%clk 0:01:00]} 21. Ba3 {[%clk 0:02:18]}  Bd4+ {[%clk 0:00:56]} 22. Kh2 {[%clk 0:02:19]}  Re3 {[%clk 0:00:56]} 23. Bb2 {[%clk 0:02:13]}  Qb6 {[%clk 0:00:40]} 24. Rb1 {[%clk 0:02:07]}  Rae8 {[%clk 0:00:28]} 25. Bc1 {[%clk 0:02:01]}  Qc5 {[%clk 0:00:18]} 26. Bxe3 {[%clk 0:02:00]}  Bxe3 {[%clk 0:00:19]} 27. Rxb7 {[%clk 0:01:58]}  Bxf4 {[%clk 0:00:19]} 28. Rxd7 {[%clk 0:01:50]}  Re1 {[%clk 0:00:12]} 29. Nf3 {[%clk 0:01:48]}  Rc1 {[%clk 0:00:05]} 30. Rd8+ {[%clk 0:01:47]}  Kf7 {[%clk 0:00:04]} 31. Qb2 {[%clk 0:01:47]}  Ke7 {[%clk 0:00:03]} 32. Rb8 {[%clk 0:01:42]}  Qe3 {[%clk 0:00:01]} 33. Qg7# {[%clk 0:01:41]} 1-0


[Site "https://www.chess.com"]

[Event "Titled Tuesday Blitz March 28 Late 2023"]
[White "Manukian, Artak"]
[Black "Sai Krishna G V"]
[WhiteFideId "13301373"]
[BlackFideId "5028280"]
[WhiteElo "2130"]
[BlackElo "2359"]
[Result "0-1"]
[Round "05"]
[TimeControl "180+2"]
[Date "2023.03.28"]
[WhiteClock "0:01:09"]
[BlackClock "0:01:13"]

1. e4 {[%clk 0:03:00]}  c5 {[%clk 0:02:58]} 2. Nf3 {[%clk 0:03:01]}  d6 {[%clk 0:02:59]} 3. Bb5+ {[%clk 0:03:00]}  Nc6 {[%clk 0:02:58]} 4. O-O {[%clk 0:03:00]}  g6 {[%clk 0:02:59]} 5. c3 {[%clk 0:02:59]}  Bg7 {[%clk 0:02:59]} 6. d4 {[%clk 0:02:58]}  cxd4 {[%clk 0:03:00]} 7. cxd4 {[%clk 0:02:59]}  Bd7 {[%clk 0:02:59]} 8. Nc3 {[%clk 0:02:58]}  a6 {[%clk 0:02:57]} 9. Be2 {[%clk 0:02:53]}  Nf6 {[%clk 0:02:56]} 10. e5 {[%clk 0:02:52]}  dxe5 {[%clk 0:02:57]} 11. dxe5 {[%clk 0:02:52]}  Ng4 {[%clk 0:02:57]} 12. Bf4 {[%clk 0:02:44]}  O-O {[%clk 0:02:56]} 13. Qb3 {[%clk 0:02:41]}  Ncxe5 {[%clk 0:02:31]} 14. Nxe5 {[%clk 0:02:34]}  Nxe5 {[%clk 0:02:31]} 15. Qxb7 {[%clk 0:02:28]}  Bc6 {[%clk 0:02:23]} 16. Qb3 {[%clk 0:02:27]}  Qa5 {[%clk 0:02:17]} 17. Rfd1 {[%clk 0:02:17]}  Rab8 {[%clk 0:02:15]} 18. Qc2 {[%clk 0:02:16]}  Rb4 {[%clk 0:02:09]} 19. Bd2 {[%clk 0:02:13]}  Rfb8 {[%clk 0:02:05]} 20. Rab1 {[%clk 0:02:08]}  Ng4 {[%clk 0:01:24]} 21. a3 {[%clk 0:01:49]}  Qe5 {[%clk 0:01:15]} 22. g3 {[%clk 0:01:26]}  Nxh2 {[%clk 0:01:12]} 23. axb4 {[%clk 0:01:21]}  Nf3+ {[%clk 0:01:13]} 24. Bxf3 {[%clk 0:01:21]}  Bxf3 {[%clk 0:01:13]} 25. Qd3 {[%clk 0:01:09]}  Qh5 {[%clk 0:01:13]} 0-1


[Site "https://www.chess.com"]

[Event "Titled Tuesday Blitz March 28 Late 2023"]
[White "Feng, Eric"]
[Black "Olsson, William"]
[WhiteFideId "30952590"]
[BlackFideId "1741721"]
[WhiteElo "1785"]
[BlackElo "2197"]
[Result "0-1"]
[Round "05"]
[TimeControl "180+2"]
[Date "2023.03.28"]
[WhiteClock "0:00:34"]
[BlackClock "0:00:25"]

1. d4 {[%clk 0:02:48]}  d5 {[%clk 0:02:59]} 2. c4 {[%clk 0:02:47]}  c6 {[%clk 0:02:59]} 3. Nf3 {[%clk 0:02:45]}  Nf6 {[%clk 0:02:59]} 4. Nbd2 {[%clk 0:02:45]}  Bf5 {[%clk 0:02:57]} 5. Nh4 {[%clk 0:02:45]}  Be6 {[%clk 0:02:56]} 6. e3 {[%clk 0:02:44]}  g6 {[%clk 0:02:56]} 7. b3 {[%clk 0:02:42]}  Bg7 {[%clk 0:02:56]} 8. Bd3 {[%clk 0:02:43]}  O-O {[%clk 0:02:56]} 9. O-O {[%clk 0:02:43]}  Nbd7 {[%clk 0:02:46]} 10. Bb2 {[%clk 0:02:43]}  c5 {[%clk 0:02:45]} 11. Nhf3 {[%clk 0:02:43]}  dxc4 {[%clk 0:02:39]} 12. Bxc4 {[%clk 0:02:43]}  Bxc4 {[%clk 0:02:35]} 13. Nxc4 {[%clk 0:02:44]}  cxd4 {[%clk 0:02:33]} 14. Nxd4 {[%clk 0:02:43]}  Nb6 {[%clk 0:02:29]} 15. Rc1 {[%clk 0:02:32]}  Rc8 {[%clk 0:02:28]} 16. Nxb6 {[%clk 0:02:23]}  Qxb6 {[%clk 0:02:28]} 17. Qe2 {[%clk 0:02:18]}  Nd5 {[%clk 0:02:07]} 18. h4 {[%clk 0:02:11]}  Qa5 {[%clk 0:01:59]} 19. a3 {[%clk 0:02:05]}  Qb6 {[%clk 0:01:56]} 20. b4 {[%clk 0:02:05]}  a5 {[%clk 0:01:54]} 21. b5 {[%clk 0:02:04]}  a4 {[%clk 0:01:31]} 22. Rc4 {[%clk 0:02:01]}  e5 {[%clk 0:01:30]} 23. Nf3 {[%clk 0:01:55]}  Qxb5 {[%clk 0:01:29]} 24. Rfc1 {[%clk 0:01:40]}  e4 {[%clk 0:01:04]} 25. Rxc8 {[%clk 0:01:24]}  Qxe2 {[%clk 0:01:00]} 26. Bxg7 {[%clk 0:01:14]}  Kxg7 {[%clk 0:00:57]} 27. Nd4 {[%clk 0:01:15]}  Qb2 {[%clk 0:00:49]} 28. R8c5 {[%clk 0:01:13]}  Rd8 {[%clk 0:00:44]} 29. R1c4 {[%clk 0:01:05]}  Qxa3 {[%clk 0:00:42]} 30. Rb5 {[%clk 0:01:05]}  Qa1+ {[%clk 0:00:40]} 31. Kh2 {[%clk 0:01:04]}  Qf1 {[%clk 0:00:37]} 32. Rxa4 {[%clk 0:00:55]}  Qxf2 {[%clk 0:00:36]} 33. Rxb7 {[%clk 0:00:54]}  Nxe3 {[%clk 0:00:33]} 34. Ne6+ {[%clk 0:00:49]}  Kf6 {[%clk 0:00:28]} 35. Rxf7+ {[%clk 0:00:33]}  Kxf7 {[%clk 0:00:27]} 36. Nxd8+ {[%clk 0:00:34]}  Ke8 {[%clk 0:00:26]} 37. Rxe4+ {[%clk 0:00:33]}  Kxd8 {[%clk 0:00:25]} 38. Rd4+ {[%clk 0:00:34]}  Kc7 {[%clk 0:00:25]} 0-1


[Site "https://www.chess.com"]

[Event "Titled Tuesday Blitz March 28 Late 2023"]
[White "Minko, Dmitry"]
[Black "Srinath, Rao S.V."]
[WhiteFideId "24188468"]
[BlackFideId "5028876"]
[WhiteElo "2147"]
[BlackElo "2196"]
[Result "1-0"]
[Round "05"]
[TimeControl "180+2"]
[Date "2023.03.28"]
[WhiteClock "0:01:04"]
[BlackClock "0:02:04"]

1. e4 {[%clk 0:03:00]}  e6 {[%clk 0:03:00]} 2. d4 {[%clk 0:03:00]}  d5 {[%clk 0:03:00]} 3. Nc3 {[%clk 0:03:01]}  Nf6 {[%clk 0:03:01]} 4. e5 {[%clk 0:03:01]}  Nfd7 {[%clk 0:03:01]} 5. Nce2 {[%clk 0:03:02]}  c5 {[%clk 0:03:02]} 6. c3 {[%clk 0:03:03]}  Nc6 {[%clk 0:03:01]} 7. Nf3 {[%clk 0:03:03]}  cxd4 {[%clk 0:02:59]} 8. cxd4 {[%clk 0:03:03]}  Bb4+ {[%clk 0:02:57]} 9. Nc3 {[%clk 0:02:54]}  f6 {[%clk 0:02:52]} 10. exf6 {[%clk 0:02:52]}  Qxf6 {[%clk 0:02:52]} 11. Bd3 {[%clk 0:02:50]}  h6 {[%clk 0:02:51]} 12. O-O {[%clk 0:02:48]}  O-O {[%clk 0:02:51]} 13. Re1 {[%clk 0:02:35]}  Rf7 {[%clk 0:02:45]} 14. Qc2 {[%clk 0:02:10]}  Nf8 {[%clk 0:02:44]} 15. a3 {[%clk 0:02:07]}  Bd6 {[%clk 0:02:44]} 16. b4 {[%clk 0:01:48]}  a6 {[%clk 0:02:42]} 17. Bb2 {[%clk 0:01:40]}  Bd7 {[%clk 0:02:40]} 18. b5 {[%clk 0:01:36]}  axb5 {[%clk 0:02:33]} 19. Nxb5 {[%clk 0:01:37]}  Bb8 {[%clk 0:02:23]} 20. Ne5 {[%clk 0:01:35]}  Nxe5 {[%clk 0:02:22]} 21. dxe5 {[%clk 0:01:35]}  Qh4 {[%clk 0:02:17]} 22. Nd6 {[%clk 0:01:21]}  Rxf2 {[%clk 0:02:04]} 23. Qxf2 {[%clk 0:01:04]}  Ra7 {[%clk 0:02:04]} 1-0


[Site "https://www.chess.com"]